fUSD/lending_fUSD_20250826
["ID","MTS","AMOUNT","RATE_DAILY","PERIOD"]
[381383795,1756174235541,-447.34,0.00016438,2]
[381383796,1756174235551,-711.1,0.00016438,2]
[381383797,1756174235560,-400.0,0.00016438,2]
[381383798,1756174235571,-784.96,0.00016438,2]
[381383799,1756174235580,-400.0,0.00016438,2]
[381383800,1756174235589,-1049.62,0.00016438,2]
[381383801,1756174235598,-400.34119471,0.00016438,2]
[381383802,1756174235609,-400.0,0.00016438,2]
[381383803,1756174235619,-400.0,0.00016438,2]
[381383804,1756174235629,-400.0,0.00016438,2]
[381383805,1756174235638,-462.14,0.00016438,2]
[381383806,1756174235647,-400.0,0.00016438,2]
[381383807,1756174235657,-400.0,0.00016438,2]
[381383808,1756174235666,-715.84,0.00016438,2]
[381383809,1756174235675,-400.0,0.00016438,2]
[381383810,1756174235685,-400.0,0.00016438,2]
[381383811,1756174235694,-400.0,0.00016438,2]
[381383812,1756174235703,-754.87,0.00016438,2]
[381383813,1756174235712,-701.99,0.00016438,2]
[381383814,1756174235722,-848.03,0.00016438,2]
[381383815,1756174235732,-697.27,0.00016438,2]
[381383816,1756174235741,-400.0,0.00016438,2]
[381383817,1756174235750,-480.79,0.00016438,2]
[381383818,1756174235760,-1818.57,0.00016438,2]
[381383819,1756174235770,-916.55,0.00016438,2]
[381383820,1756174235779,-400.0,0.00016438,2]
[381383821,1756174235788,-400.0,0.00016438,2]
[381383822,1756174235798,-400.0,0.00016438,2]
[381383823,1756174235807,-509.89,0.00016438,2]
[381383824,1756174235816,-400.0,0.00016438,2]
[381383825,1756174235826,-413.62701017,0.00016438,2]
[381383826,1756174235835,-556.39,0.00016438,2]
[381383827,1756174235844,-998.0,0.00016438,2]
[381383828,1756174235854,-913.12,0.00016438,2]
[381383829,1756174235864,-400.0,0.00016438,2]
[381383830,1756174236190,-657.71,0.00016438,2]
[381383831,1756174236200,-400.0,0.00016438,2]
[381383832,1756174236209,-400.0,0.00016438,2]
[381383833,1756174236219,-669.39,0.00016438,2]
[381383834,1756174236232,-755.35,0.00016438,2]
[381383835,1756174236242,-400.0,0.00016438,2]
[381383836,1756174236252,-639.35,0.00016438,2]
[381383837,1756174236262,-400.0,0.00016438,2]
[381383838,1756174236272,-781.95,0.00016438,2]
[381383839,1756174236282,-694.73,0.00016438,2]
[381383840,1756174236291,-758.23,0.00016438,2]
[381383841,1756174236301,-408.22207296,0.00016438,2]
[381383842,1756174236310,-1059.62,0.00016438,2]
[381383843,1756174236320,-400.0,0.00016438,2]
[381383844,1756174236330,-1000.0,0.00016438,2]
[381383845,1756174236340,-799.52,0.00016438,2]
[381383846,1756174236349,-400.0,0.00016438,2]
[381383847,1756174236358,-400.0,0.00016438,2]
[381383848,1756174236367,-401.93,0.00016438,2]
[381383849,1756174236378,-465.18,0.00016438,2]
[381383850,1756174236388,-567.29,0.00016438,2]
[381383851,1756174236398,-595.76,0.00016438,2]
[381383852,1756174236407,-790.78,0.00016438,2]
[381383853,1756174236419,-400.0,0.00016438,2]
[381383854,1756174236429,-400.0,0.00016438,2]
[381383855,1756174236439,-400.58702949,0.00016438,2]
[381383856,1756174236449,-400.0,0.00016438,2]
[381383857,1756174236458,-479.49,0.00016438,2]
[381383858,1756174236467,-400.51819955,0.00016438,2]
[381383859,1756174236477,-519.75,0.00016438,2]
[381383860,1756174236487,-400.0,0.00016438,2]
[381383861,1756174236496,-1145.9,0.00016438,2]
[381383862,1756174236506,-400.0,0.00016438,2]
[381383863,1756174236516,-400.0,0.00016438,2]
[381383864,1756174236525,-400.0,0.00016438,2]
[381383865,1756174236536,-463.6,0.00016438,2]
[381383866,1756174236550,-810.05,0.00016438,2]
[381383867,1756174236564,-903.47,0.00016438,2]
[381383868,1756174236574,-621.81,0.00016438,2]
[381383869,1756174236583,-400.80796422,0.00016438,2]
[381383870,1756174236593,-498.23,0.00016438,2]
[381383871,1756174236602,-1056.16,0.00016438,2]
[381383872,1756174236612,-1026.33,0.00016438,2]
[381383873,1756174236623,-400.0,0.00016438,2]
[381383874,1756174236633,-400.0,0.00016438,2]
[381383875,1756174236643,-454.50981952,0.00016438,2]
[381383876,1756174236711,-170.33018048,0.00016438,2]
[381383877,1756174236721,-509.33,0.00016438,2]
[381383878,1756174236731,-400.0,0.00016438,2]
[381383879,1756174236741,-716.34,0.00016438,2]
[381383880,1756174236750,-1630.46,0.00016438,2]
[381383881,1756174236760,-400.0,0.00016438,2]
[381383882,1756174236770,-400.0,0.00016438,2]
[381383883,1756174236779,-743.33,0.00016438,2]
[381383884,1756174236789,-745.41,0.00016438,2]
[381383885,1756174236799,-1413.86,0.00016438,2]
[381383886,1756174236809,-477.47,0.00016438,2]
[381383887,1756174236818,-400.0,0.00016438,2]
[381383888,1756174236827,-400.0,0.00016438,2]
[381383889,1756174236837,-400.0,0.00016438,2]
[381383890,1756174236846,-286.318233,0.00016438,2]
[381383891,1756174236858,-113.681767,0.00016438,2]
[381383892,1756174236868,-171.48080062,0.00016438,2]
[381383893,1756174236880,-1140.36919938,0.00016438,2]
[381383894,1756174236890,-488.73,0.00016438,2]
[381383895,1756174236899,-1044.22,0.00016438,2]
[381383896,1756174236909,-1500.82,0.00016438,2]
[381383897,1756174236918,-400.0,0.00016438,2]
[381383898,1756174236927,-412.79,0.00016438,2]
[381383899,1756174236936,-400.0,0.00016438,2]
[381383900,1756174236945,-1299.66,0.00016438,2]
[381383901,1756174236955,-400.0,0.00016438,2]
[381383902,1756174236964,-455.96,0.00016438,2]
[381383903,1756174236974,-1507.47,0.00016438,2]
[381383904,1756174236984,-715.21,0.00016438,2]
[381383905,1756174236993,-430.26,0.00016438,2]
[381383906,1756174237002,-400.0,0.00016438,2]
[381383907,1756174237011,-1371.51,0.00016438,2]
[381383908,1756174237020,-400.32117248,0.00016438,2]
[381383909,1756174237030,-400.0,0.00016438,2]
[381383910,1756174237039,-400.51166647,0.00016438,2]
[381383911,1756174237048,-400.0,0.00016438,2]
[381383912,1756174237058,-511.5,0.00016438,2]
[381383913,1756174237067,-400.0,0.00016438,2]
[381383914,1756174237076,-400.0,0.00016438,2]
[381383915,1756174237086,-834.0,0.00016438,2]
[381383916,1756174237095,-443.72,0.00016438,2]
[381383917,1756174237104,-487.72,0.00016438,2]
[381383918,1756174237113,-400.0,0.00016438,2]
[381383919,1756174237123,-619.81,0.00016438,2]
[381383920,1756174237132,-1223.38,0.00016438,2]
[381383921,1756174237142,-883.77,0.00016438,2]
[381383922,1756174237151,-400.0,0.00016438,2]
[381383923,1756174237160,-718.12,0.00016438,2]
[381383924,1756174237169,-400.0,0.00016438,2]
[381383925,1756174237179,-641.68,0.00016438,2]
[381383926,1756174237188,-402.02923651,0.00016438,2]
[381383927,1756174237198,-1623.26,0.00016438,2]
[381383928,1756174237207,-400.0,0.00016438,2]
[381383929,1756174237217,-752.5,0.00016438,2]
[381383930,1756174237227,-400.0,0.00016438,2]
[381383931,1756174237237,-400.0,0.00016438,2]
[381383932,1756174237247,-400.0,0.00016438,2]
[381383933,1756174237257,-400.0,0.00016438,2]
[381383934,1756174237266,-582.96,0.00016438,2]
[381383935,1756174237276,-730.53,0.00016438,2]
[381383936,1756174237285,-1230.28,0.00016438,2]
[381383937,1756174237294,-597.96,0.00016438,2]
[381383938,1756174237303,-951.85,0.00016438,2]
[381383939,1756174237312,-982.65,0.00016438,2]
[381383940,1756174237321,-705.33,0.00016438,2]
[381383941,1756174237331,-400.0,0.00016438,2]
[381383942,1756174237340,-400.0,0.00016438,2]
[381383943,1756174237349,-883.55,0.00016438,2]
[381383944,1756174237359,-1184.59,0.00016438,2]
[381383945,1756174237369,-637.27,0.00016438,2]
[381383946,1756174237380,-638.03,0.00016438,2]
[381383947,1756174237389,-887.09,0.00016438,2]
[381383948,1756174237399,-916.09,0.00016438,2]
[381383949,1756174237409,-400.0,0.00016438,2]
[381383950,1756174237418,-184.48880185,0.00016438,2]
[381383951,1756174237428,-400.0,0.00016438,2]
[381383952,1756174237437,-552.44,0.00016438,2]
[381383953,1756174237447,-400.0,0.00016438,2]
[381383954,1756174237456,-1137.35,0.00016438,2]
[381383955,1756174237466,-1045.58,0.00016438,2]
[381383956,1756174237475,-402.51942939,0.00016438,2]
[381383957,1756174237485,-946.93,0.00016438,2]
[381383958,1756174237494,-1318.39,0.00016438,2]
[381383959,1756174237505,-464.06,0.00016438,2]
[381383960,1756174237515,-753.48,0.00016438,2]
[381383961,1756174237524,-400.0,0.00016438,2]
[381383962,1756174237534,-400.80818413,0.00016438,2]
[381383963,1756174237547,-583.96,0.00016438,2]
[381383964,1756174237556,-400.0,0.00016438,2]
[381383965,1756174237566,-1050.37,0.00016438,2]
[381383966,1756174237576,-400.0,0.00016438,2]
[381383967,1756174237585,-301.46530888,0.00016438,2]
[381383968,1756174237595,-2071.27,0.00016438,2]
[381383969,1756174237606,-400.0,0.00016438,2]
[381383970,1756174237617,-400.0,0.00016438,2]
[381383971,1756174237627,-857.95,0.00016438,2]
[381383972,1756174237637,-1153.28,0.00016438,2]
[381383973,1756174237646,-882.58,0.00016438,2]
[381383974,1756174237656,-606.95,0.00016438,2]
[381383975,1756174237666,-400.0,0.00016438,2]
[381383976,1756174237676,-401.07150181,0.00016438,2]
[381383977,1756174237685,-501.45478859,0.00016438,2]
[381383978,1756174237694,-1112.09,0.00016438,2]
[381383979,1756174237704,-400.0,0.00016438,2]
[381383980,1756174237713,-486.07,0.00016438,2]
[381383981,1756174237722,-400.0,0.00016438,2]
[381383982,1756174237731,-400.0,0.00016438,2]
[381383983,1756174237741,-1101.24,0.00016438,2]
[381383984,1756174237751,-400.0,0.00016438,2]
[381383985,1756174237760,-299.16457007,0.00016438,2]
[381384207,1756174241015,-348.55364224,0.00015038,2]
[381384209,1756174241029,-418.13281633,0.00015038,2]
[381384214,1756174241068,-420.43169619,0.00015038,2]
[381384218,1756174241095,-1563.88184524,0.00015038,2]
[381384220,1756174241105,-291.65,0.00016428,2]
[381384222,1756174241114,-100.83542993,0.00016438,2]
[381384224,1756174241123,-466.23,0.00016438,2]
[381384226,1756174241133,-1252.95,0.00016438,2]
[381384228,1756174241142,-882.69,0.00016438,2]
[381384230,1756174241151,-2750.20663021,0.00016438,2]
[381384331,1756174242122,-327.38472181,0.00016428,2]
[381384333,1756174242134,-121.83527819,0.00016428,2]
[381384336,1756174242143,-220.42794254,0.00016438,2]
[381384345,1756174242226,-303.61216645,0.00016438,2]
[381384353,1756174242287,-284.01844606,0.00016438,2]
[381384355,1756174242299,-1487.11704727,0.00016438,2]
[381384357,1756174242310,-1086.75205874,0.00016438,2]
[381384365,1756174242380,-575.09046228,0.00016438,2]
[381384460,1756174243285,-927.04524645,0.00016438,2]
[381384462,1756174243295,-400.0,0.00016438,2]
[381384464,1756174243304,-1252.53,0.00016438,2]
[381384466,1756174243313,-275.0010199,0.00016438,2]
[381384468,1756174243322,-400.0,0.00016438,2]
[381384470,1756174243331,-400.0,0.00016438,2]
[381384472,1756174243341,-400.0,0.00016438,2]
[381384474,1756174243350,-400.0,0.00016438,2]
[381384476,1756174243360,-400.0,0.00016438,2]
[381384478,1756174243369,-649.14,0.00016438,2]
[381384480,1756174243378,-403.62,0.00016438,2]
[381384482,1756174243389,-393.87948693,0.00016438,2]
[381384484,1756174243401,-6.64124297,0.00016438,2]
[381384486,1756174243412,-400.0,0.00016438,2]
[381384488,1756174243421,-707.69881703,0.00016438,2]
[381384493,1756174243458,-196.01118297,0.00016438,2]
[381384495,1756174243468,-406.99,0.00016438,2]
[381384497,1756174243478,-400.0,0.00016438,2]
[381384499,1756174243488,-98.61392454,0.00016438,2]
[381384502,1756174243510,-301.38607546,0.00016438,2]
[381384504,1756174243520,-654.48,0.00016438,2]
[381384506,1756174243530,-130.88291167,0.00016438,2]
[381384782,1756174246476,-250.0,0.00015,2]
[381384784,1756174246485,-270.15201662,0.00016438,2]
[381384786,1756174246494,-629.54106876,0.00016438,2]
[381385844,1756174341907,162.36,0.00025943,120]
[381385845,1756174436642,2835.37830375,0.00023,33]
[381385935,1756175254091,400.0,0.000119,4]
[381385944,1756175310166,2413.47411538,0.0001098,2]
[381386000,1756175431448,-237.787692,0.00011898,2]
[381386001,1756175431458,-408.6410446,0.00011898,2]
[381386002,1756175431469,-80.28340507,0.00011898,2]
[381386003,1756175431479,-1200.0,0.00011998,2]
[381386004,1756175431488,-1200.0,0.00011998,2]
[381386005,1756175431498,-150.0,0.00011998,2]
[381386006,1756175431508,-208.90330962,0.00011999,2]
[381386007,1756175431517,-372.26629935,0.00011999,2]
[381386008,1756175431527,-500.0,0.00011999,2]
[381386009,1756175431536,-500.0,0.00011999,2]
[381386010,1756175431546,-500.0,0.00011999,2]
[381386011,1756175431555,-500.0,0.00011999,2]
[381386012,1756175431563,-500.0,0.00011999,2]
[381386013,1756175431575,-278.90331206,0.00011999,2]
[381386014,1756175431586,-500.0,0.00011999,2]
[381386015,1756175431595,-374.06442872,0.00011999,2]
[381386016,1756175431604,-156.00107271,0.00011999,2]
[381386017,1756175431614,-108728.21489571,0.00012,2]
[381386018,1756175431658,-276.0410326,0.00012,2]
[381386019,1756175431687,-2836.06525527,0.00012,2]
[381386020,1756175431712,-263.263,0.00012,2]
[381386021,1756175431747,-1981.24539818,0.00012,2]
[381386022,1756175431758,-755.293,0.00012,2]
[381386023,1756175431793,-139157.7915308,0.00012,2]
[381386024,1756175431846,-3386.76,0.00012,2]
[381386044,1756175437340,-325.9597055,0.00011838,2]
[381386045,1756175437395,-169.4620785,0.00011838,2]
[381386046,1756175437405,-218.58418943,0.00012,2]
[381386047,1756175437416,-343.93041777,0.00012,2]
[381386048,1756175437449,-271.67648499,0.00012,2]
[381386049,1756175437460,-2838.98500756,0.00012,2]
[381386050,1756175437508,-3348.6000001,0.00012,2]
[381386051,1756175437617,-547.16138161,0.00012,2]
[381386229,1756175439534,-136380.28180768,0.00012,2]
[381386234,1756175440013,-7581.69570921,0.00012,2]
[381386235,1756175440131,-7440.5805696,0.00012,2]
[381386242,1756175442526,-2498.64000003,0.00012,2]
[381386243,1756175442538,-11459.32520293,0.00012,2]
[381386244,1756175442550,-547.82262915,0.00012,2]
[381386245,1756175442684,-750.36585909,0.00012,2]
[381386248,1756175442733,-3536.87543625,0.00012,2]
[381386251,1756175442788,-710.25690927,0.00012,2]
[381386260,1756175445523,-34767.22016866,0.00012,2]
[381386261,1756175445535,-6704.37827511,0.00012,2]
[381386262,1756175445547,-344.65116263,0.00012,2]
[381386263,1756175445749,-38003.16318821,0.00012,2]
[381386275,1756175531727,-719.115,0.0001176,2]
[381386278,1756175545972,307.69095275,0.000287,120]
[381386279,1756175586961,-7317.556,0.0001176,2]
[381386280,1756175586985,-500.0,0.00011899,2]
[381386281,1756175587010,-2732.53408569,0.000119,2]
[381386282,1756175587034,-261.20151053,0.000119,2]
[381386283,1756175587057,-285.0,0.00011949,2]
[381386284,1756175587079,-152.0,0.00011949,2]
[381386285,1756175587107,-500.0,0.00011993,2]
[381386286,1756175587130,-500.0,0.00011993,2]
[381386287,1756175587154,-500.0,0.00011993,2]
[381386288,1756175587177,-500.0,0.00011993,2]
[381386289,1756175587200,-500.0,0.00011993,2]
[381386290,1756175587222,-500.0,0.00011993,2]
[381386291,1756175587245,-151.0,0.00011993,2]
[381386292,1756175587267,-500.0,0.00011993,2]
[381386293,1756175587291,-500.0,0.00011993,2]
[381386294,1756175587315,-500.0,0.00011993,2]
[381386295,1756175587338,-545.81859233,0.00011993,2]
[381386296,1756175587360,-200.0,0.00011993,2]
[381386297,1756175587383,-500.0,0.00011993,2]
[381386298,1756175587409,-307.03744598,0.00011993,2]
[381386299,1756175587433,-151.0,0.00011993,2]
[381386300,1756175587456,-151.0,0.00011993,2]
[381386301,1756175587481,-151.0,0.00011993,2]
[381386302,1756175587504,-151.0,0.00011993,2]
[381386303,1756175587527,-151.0,0.00011993,2]
[381386304,1756175587551,-151.0,0.00011993,2]
[381386305,1756175587572,-151.0,0.00011993,2]
[381386306,1756175587594,-151.0,0.00011993,2]
[381386307,1756175587617,-151.0,0.00011993,2]
[381386308,1756175587639,-151.0,0.00011993,2]
[381386309,1756175588010,-151.0,0.00011993,2]
[381386310,1756175588035,-151.0,0.00011993,2]
[381386311,1756175588059,-150.0,0.00011999,2]
[381386312,1756175588086,-355071.24181931,0.00012,2]
[381386313,1756175588108,-500.0,0.00012,2]
[381386314,1756175588130,-170.81170398,0.00012,2]
[381386315,1756175588153,-150.99553461,0.00012,2]
[381386316,1756175588175,-500.0,0.00012,2]
[381386317,1756175588198,-500.0,0.00012,2]
[381386318,1756175588220,-500.0,0.00012,2]
[381386319,1756175588241,-500.83683652,0.00012,2]
[381386320,1756175588273,-500.0,0.00012,2]
[381386321,1756175588300,-500.16718971,0.00012,2]
[381386322,1756175588325,-165.96679029,0.00012,2]
[381386323,1756175588350,-500.0,0.00012,2]
[381386324,1756175588373,-501.90245132,0.00012,2]
[381386325,1756175588400,-500.0,0.00012,2]
[381386326,1756175588425,-500.0,0.00012,2]
[381386327,1756175588449,-500.0,0.00012,2]
[381386328,1756175588471,-501.25212991,0.00012,2]
[381386329,1756175588493,-196.75439769,0.00012,2]
[381386330,1756175588516,-500.0,0.00012,2]
[381386331,1756175588539,-500.0,0.00012048,2]
[381386332,1756175588561,-500.0,0.00012103,2]
[381386333,1756175588583,-500.0,0.00012158,2]
[381386334,1756175588607,-2732.53408568,0.00012454,2]
[381386335,1756175588629,-151.0,0.00012541,2]
[381386336,1756175588652,-1000.0,0.00012548,2]
[381386337,1756175588674,-1000.0,0.00012548,2]
[381386338,1756175588702,-501.44256803,0.00012548,2]
[381386339,1756175588727,-301.40069258,0.00012548,2]
[381386340,1756175588751,-541.23218333,0.00012548,2]
[381386341,1756175588775,-533.44368358,0.00012548,2]
[381386342,1756175588800,-1000.0,0.00012548,2]
[381386343,1756175588824,-1001.26346813,0.00012548,2]
[381386344,1756175588848,-500.55793421,0.00012548,2]
[381386345,1756175588876,-1000.0,0.00012548,2]
[381386346,1756175588901,-1524.0,0.00012794,2]
[381386347,1756175588926,-261.20151048,0.00012845,2]
[381386348,1756175588952,-476.2880272,0.00012979,2]
[381386349,1756175588977,-2732.53408568,0.00013008,2]
[381386350,1756175589001,-206.0,0.00013079,2]
[381386351,1756175589024,-155.85157622,0.00013089,2]
[381386352,1756175589047,-285.0,0.0001309,2]
[381386353,1756175589071,-300.0,0.0001309,2]
[381386354,1756175589095,-250.0,0.0001309,2]
[381386355,1756175589119,-500.0,0.0001309,2]
[381386356,1756175589143,-152.0,0.0001309,2]
[381386357,1756175589171,-501.45660279,0.00013096,2]
[381386358,1756175589195,-502.45823169,0.00013096,2]
[381386359,1756175589219,-501.23496807,0.00013096,2]
[381386360,1756175589243,-843.52027561,0.00013096,2]
[381386361,1756175589278,-500.0,0.00013198,2]
[381386362,1756175589305,-505.0,0.00013198,2]
[381386363,1756175589331,-2732.53408568,0.00013562,2]
[381386364,1756175589358,-476.28802712,0.00013636,2]
[381386365,1756175589384,-495.73,0.00013699,2]
[381386366,1756175589413,-261.20151048,0.0001379,2]
[381386367,1756175589441,-295.36982993,0.000139,2]
[381386368,1756175589470,-161.24,0.00014041,2]
[381386369,1756175589497,-2732.53408568,0.00014116,2]
[381386370,1756175589524,-163.95,0.00014273,2]
[381386371,1756175589550,-163.95,0.00014288,2]
[381386372,1756175589574,-476.28802712,0.00014293,2]
[381386373,1756175589603,-163.95,0.00014302,2]
[381386374,1756175589630,-1000.0,0.00014313,2]
[381386375,1756175589655,-163.95,0.00014316,2]
[381386376,1756175589681,-163.95,0.0001433,2]
[381386377,1756175589705,-163.95,0.00014345,2]
[381386378,1756175589730,-163.95,0.00014359,2]
[381386379,1756175589755,-163.95,0.00014373,2]
[381386380,1756175589781,-404.0,0.000144,2]
[381386381,1756175589805,-2627.54,0.00014415,2]
[381386382,1756175589830,-500.0,0.00014487,2]
[381386383,1756175589855,-2732.53408568,0.0001467,2]
[381386384,1756175589882,-666.0,0.00014707,3]
[381386385,1756175589907,-207.4,0.00014732,2]
[381386386,1756175589931,-261.20151048,0.00014735,2]
[381386387,1756175589956,-500.0,0.0001474,2]
[381386388,1756175589979,-1695.05,0.00014868,2]
[381386389,1756175590003,-476.28802712,0.0001495,2]
[381386390,1756175590026,-200.0,0.00015153,2]
[381386391,1756175590053,-2732.53408568,0.00015224,2]
[381386392,1756175590078,-150.0,0.00015263,2]
[381386393,1756175590103,-254.01633208,0.00015263,2]
[381386394,1756175590129,-158.35940986,0.00015263,2]
[381386395,1756175590153,-152.33690815,0.00015263,2]
[381386396,1756175590176,-151.674701,0.00015263,2]
[381386397,1756175590671,-153.70952105,0.00015263,2]
[381386398,1756175590695,-358.63,0.00015265,2]
[381386399,1756175590720,-209.37235272,0.00015401,2]
[381386400,1756175590743,-446.0,0.00015401,2]
[381386401,1756175590767,-250.0,0.00015427,2]
[381386402,1756175590789,-469.3,0.00015441,2]
[381386403,1756175590811,-150.83,0.00015527,2]
[381386404,1756175590835,-396.0,0.0001558,2]
[381386405,1756175590858,-476.28802712,0.00015607,2]
[381386406,1756175590887,-261.20151048,0.00015681,2]
[381386407,1756175590911,-264.21,0.00015699,2]
[381386408,1756175590934,-451.62,0.00015699,2]
[381386409,1756175590959,-173.76,0.00015699,2]
[381386410,1756175590981,-349.94,0.00015699,2]
[381386411,1756175591003,-151.35,0.00015699,2]
[381386412,1756175591025,-408.65,0.00015699,2]
[381386413,1756175591050,-800.0,0.000157,5]
[381386414,1756175591074,-2732.53408568,0.00015778,2]
[381386415,1756175591098,-1300.0,0.000158,5]
[381386416,1756175591126,-1700.0,0.000159,5]
[381386417,1756175591150,-304.81,0.00015918,2]
[381386418,1756175591174,-35522.57771389,0.00016,2]
[381386419,1756175591198,-151.0,0.00016072,2]
[381386420,1756175591221,-1172.05,0.000161,2]
[381386421,1756175591247,-1000.0,0.00016102,2]
[381386422,1756175591277,-1172.0,0.00016138,2]
[381386423,1756175591308,-166.66,0.00016244,2]
[381386424,1756175591332,-476.28802712,0.00016264,2]
[381386425,1756175591355,-6131.2301,0.0001627,2]
[381386426,1756175591378,-2236.479016,0.00016283,2]
[381386427,1756175591404,-1124.7085794,0.00016283,2]
[381386428,1756175591427,-708.639103,0.00016283,2]
[381386429,1756175591450,-868.36464116,0.00016283,2]
[381386430,1756175591472,-150.0,0.00016283,2]
[381386431,1756175591494,-500.0,0.00016283,2]
[381386432,1756175591516,-500.0,0.00016297,2]
[381386433,1756175591539,-150.0,0.00016297,2]
[381386434,1756175591561,-500.0,0.00016297,2]
[381386435,1756175591586,-810.97,0.00016329,2]
[381386436,1756175591610,-2732.53408568,0.00016332,2]
[381386437,1756175591633,-785.87707712,0.00016338,2]
[381386438,1756175591657,-1439.26023506,0.00016377,2]
[381386439,1756175591680,-694.0,0.00016384,2]
[381386440,1756175591703,-735.0,0.00016398,2]
[381386441,1756175591726,-500.0,0.00016398,2]
[381386442,1756175591750,-1390.0,0.00016398,2]
[381386443,1756175591776,-150.0,0.00016398,2]
[381386444,1756175591801,-186.06043771,0.00016399,2]
[381386445,1756175591824,-407.50532865,0.00016399,2]
[381386446,1756175591848,-167.3373924,0.00016399,2]
[381386447,1756175591873,-205.59251523,0.00016399,2]
[381386448,1756175591897,-151.0,0.00016399,2]
[381386449,1756175591921,-151.85998896,0.00016399,2]
[381386450,1756175591948,-237209.58325436,0.000164,2]
[381386457,1756175620516,1800.0,0.00028767,120]
[381386473,1756176248623,3855.93344,7.945e-05,2]
[381386482,1756176352713,-1524.0,0.0001158,2]
[381386483,1756176369243,-177.67040341,0.00013876,2]
[381386484,1756176369267,-2500.0,0.00013976,2]
[381386485,1756176369293,-2325.32959659,0.00014053,2]
[381386489,1756176457601,-174.67040341,0.00014053,2]
[381386490,1756176457624,-1200.0,0.00014063,2]
[381386491,1756176457646,-152.0,0.00014064,2]
[381386492,1756176457669,-2500.0,0.00014064,2]
[381386493,1756176457691,-250.0,0.00014064,2]
[381386494,1756176457712,-2500.0,0.00014064,2]
[381386495,1756176457733,-2500.0,0.00014915,2]
[381386496,1756176457754,-562.96,0.00014974,2]
[381386497,1756176458082,-348.77,0.0001507,2]
[381386498,1756176458109,-5488.84,0.00015072,2]
[381386499,1756176458138,-200.0,0.00015198,2]
[381386500,1756176458166,-150.0,0.00015312,2]
[381386501,1756176458190,-178.54,0.00015322,2]
[381386502,1756176458214,-250.0,0.00015322,2]
[381386503,1756176458237,-1278.4,0.00015374,2]
[381386504,1756176458261,-160.0,0.00015397,7]
[381386505,1756176458284,-484.0,0.00015537,2]
[381386506,1756176458310,-484.0,0.00015545,2]
[381386507,1756176458335,-484.0,0.00015574,2]
[381386508,1756176458357,-484.0,0.00015578,2]
[381386509,1756176458380,-169.81959659,0.00015586,2]
[381386510,1756176458975,-314.18040341,0.00015586,2]
[381386511,1756176458998,-500.0,0.000156,5]
[381386512,1756176459020,-300.0,0.00015638,2]
[381386513,1756176459046,-484.0,0.00015682,2]
[381386514,1756176459067,-408.65,0.00015699,2]
[381386515,1756176459088,-152.77,0.00015699,2]
[381386516,1756176459115,-1000.0,0.000157,5]
[381386517,1756176459137,-484.0,0.00015703,2]
[381386518,1756176459158,-816.96,0.000158,2]
[381386519,1756176459178,-1079.18,0.000158,2]
[381386520,1756176459202,-1500.0,0.000158,5]
[381386521,1756176459224,-484.0,0.00015848,2]
[381386522,1756176459246,-2000.0,0.000159,5]
[381386523,1756176459270,-168.0,0.00015959,2]
[381386524,1756176459295,-168.0,0.00016009,2]